fUSD/lending_fUSD_20250302
["ID","MTS","AMOUNT","RATE_DAILY","PERIOD"]
[355135846,1740934243657,-500.0,0.00026373,2]
[355135848,1740934243666,-500.0,0.00026373,2]
[355135850,1740934243675,-500.0,0.00026373,2]
[355135852,1740934243685,-500.0,0.00026373,2]
[355135854,1740934243697,-500.0,0.00026373,2]
[355135857,1740934243707,-500.0,0.00026373,2]
[355135861,1740934243716,-500.0,0.00026373,2]
[355135865,1740934243726,-500.0,0.00026373,2]
[355135868,1740934243745,-500.0,0.00026373,2]
[355135870,1740934243755,-500.0,0.00026373,2]
[355135873,1740934243765,-500.0,0.00026373,2]
[355135875,1740934243775,-500.0,0.00026373,2]
[355135877,1740934243785,-570.27,0.00026373,2]
[355135879,1740934243795,-500.0,0.00026373,2]
[355135881,1740934243804,-500.0,0.00026373,2]
[355135883,1740934243815,-500.0,0.00026373,2]
[355135886,1740934243825,-500.0,0.00026373,2]
[355135889,1740934243837,-500.0,0.00026373,2]
[355135891,1740934243847,-500.0,0.00026373,2]
[355135893,1740934243857,-500.0,0.00026373,2]
[355135895,1740934243867,-500.0,0.00026373,2]
[355135897,1740934243877,-506.05529541,0.00026373,2]
[355135899,1740934243887,-500.0,0.00026373,2]
[355135901,1740934243897,-500.0,0.00026373,2]
[355135903,1740934243908,-542.62,0.00026373,2]
[355135905,1740934243917,-500.0,0.00026373,2]
[355135907,1740934243928,-500.0,0.00026373,2]
[355135909,1740934243938,-500.0,0.00026373,2]
[355135910,1740934243947,-503.42739254,0.00026373,2]
[355135912,1740934243958,-500.0,0.00026373,2]
[355135914,1740934243969,-500.0,0.00026373,2]
[355135916,1740934243984,-500.0,0.00026373,2]
[355135918,1740934243995,-564.57,0.00026373,2]
[355135921,1740934244006,-500.0,0.00026373,2]
[355135923,1740934244017,-500.0,0.00026373,2]
[355135925,1740934244027,-500.0,0.00026373,2]
[355135927,1740934244038,-500.0,0.00026373,2]
[355135929,1740934244048,-500.0,0.00026373,2]
[355135930,1740934244058,-500.0,0.00026373,2]
[355135932,1740934244069,-500.0,0.00026373,2]
[355135934,1740934244078,-500.0,0.00026373,2]
[355135936,1740934244088,-500.0,0.00026373,2]
[355135938,1740934244099,-500.0,0.00026373,2]
[355135940,1740934244108,-500.0,0.00026373,2]
[355135942,1740934244119,-500.0,0.00026373,2]
[355135944,1740934244129,-500.0,0.00026373,2]
[355135946,1740934244139,-500.0,0.00026373,2]
[355135948,1740934244148,-500.0,0.00026373,2]
[355135950,1740934244159,-500.0,0.00026373,2]
[355135952,1740934244169,-500.0,0.00026373,2]
[355135954,1740934244179,-500.0,0.00026373,2]
[355135956,1740934244189,-500.0,0.00026373,2]
[355135958,1740934244199,-500.0,0.00026373,2]
[355135960,1740934244209,-500.0,0.00026373,2]
[355135962,1740934244219,-500.0,0.00026373,2]
[355135964,1740934244232,-909.31,0.00026373,2]
[355135966,1740934244244,-500.0,0.00026373,2]
[355135968,1740934244255,-500.0,0.00026373,2]
[355135970,1740934244265,-500.0,0.00026373,2]
[355135972,1740934244276,-500.0,0.00026373,2]
[355135974,1740934244286,-500.0,0.00026373,2]
[355135976,1740934244296,-502.79,0.00026373,2]
[355135978,1740934244306,-587.7909024,0.00026373,2]
[355135980,1740934244316,-500.0,0.00026373,2]
[355135982,1740934244326,-500.0,0.00026373,2]
[355135984,1740934244336,-500.0,0.00026373,2]
[355135986,1740934244347,-496.35886665,0.00026373,2]
[355135988,1740934244356,-500.0,0.00026373,2]
[355135990,1740934244366,-504.45,0.00026373,2]
[355135992,1740934244377,-548.39,0.00026373,2]
[355135994,1740934244387,-267.50129153,0.00026373,2]
[355135996,1740934244397,-510.72982431,0.00026373,2]
[355135998,1740934244407,-500.0,0.00026373,2]
[355136000,1740934244418,-500.0,0.00026373,2]
[355136027,1740934244568,-501.48,0.00026373,2]
[355136031,1740934244579,-500.0,0.00026373,2]
[355136035,1740934244589,-500.0,0.00026373,2]
[355136038,1740934244599,-500.0,0.00026373,2]
[355136040,1740934244609,-500.0,0.00026373,2]
[355136043,1740934244619,-500.0,0.00026373,2]
[355136046,1740934244628,-500.0,0.00026373,2]
[355136048,1740934244638,-500.0,0.00026373,2]
[355136050,1740934244647,-1182.18,0.00026373,2]
[355136052,1740934244657,-500.0,0.00026373,2]
[355136054,1740934244666,-500.0,0.00026373,2]
[355136056,1740934244676,-500.0,0.00026373,2]
[355136060,1740934244688,-500.0,0.00026373,2]
[355136064,1740934244698,-500.0,0.00026373,2]
[355136067,1740934244709,-500.0,0.00026373,2]
[355136071,1740934244721,-500.0,0.00026373,2]
[355136074,1740934244734,-500.0,0.00026373,2]
[355136077,1740934244744,-500.0,0.00026373,2]
[355136080,1740934244755,-500.0,0.00026373,2]
[355136083,1740934244765,-500.0,0.00026373,2]
[355136086,1740934244775,-500.0,0.00026373,2]
[355136089,1740934244785,-556.35,0.00026373,2]
[355136092,1740934244795,-500.0,0.00026373,2]
[355136095,1740934244804,-500.0,0.00026373,2]
[355136098,1740934244814,-500.0,0.00026373,2]
[355136100,1740934244824,-500.0,0.00026373,2]
[355136103,1740934244834,-500.0,0.00026373,2]
[355136106,1740934244844,-500.0,0.00026373,2]
[355136109,1740934244854,-500.0,0.00026373,2]
[355136113,1740934244863,-508.03430446,0.00026373,2]
[355136116,1740934244874,-500.0,0.00026373,2]
[355136119,1740934244884,-500.0,0.00026373,2]
[355136121,1740934244893,-500.0,0.00026373,2]
[355136124,1740934244903,-519.20928923,0.00026373,2]
[355136126,1740934244913,-500.0,0.00026373,2]
[355136128,1740934244923,-680.67,0.00026373,2]
[355136130,1740934244933,-500.0,0.00026373,2]
[355136132,1740934244944,-500.0,0.00026373,2]
[355136134,1740934244955,-500.0,0.00026373,2]
[355136137,1740934244966,-500.0,0.00026373,2]
[355136138,1740934244976,-500.0,0.00026373,2]
[355136141,1740934244992,-508.89672768,0.00026373,2]
[355136143,1740934245003,-500.0,0.00026373,2]
[355136145,1740934245014,-500.0,0.00026373,2]
[355136147,1740934245024,-500.0,0.00026373,2]
[355136149,1740934245034,-587.6,0.00026373,2]
[355136151,1740934245044,-500.0,0.00026373,2]
[355136153,1740934245056,-500.0,0.00026373,2]
[355136155,1740934245066,-500.0,0.00026373,2]
[355136157,1740934245076,-500.0,0.00026373,2]
[355136159,1740934245086,-500.0,0.00026373,2]
[355136161,1740934245095,-500.0,0.00026373,2]
[355136163,1740934245105,-500.0,0.00026373,2]
[355136165,1740934245115,-500.0,0.00026373,2]
[355136167,1740934245124,-514.95461351,0.00026373,2]
[355136169,1740934245134,-726.88,0.00026373,2]
[355136170,1740934245143,-500.0,0.00026373,2]
[355136172,1740934245153,-500.0,0.00026373,2]
[355136174,1740934245162,-500.0,0.00026373,2]
[355136176,1740934245172,-661.59,0.00026373,2]
[355136178,1740934245181,-500.0,0.00026373,2]
[355136180,1740934245191,-500.0,0.00026373,2]
[355136182,1740934245200,-802.77,0.00026373,2]
[355136184,1740934245210,-500.0,0.00026373,2]
[355136186,1740934245219,-500.0,0.00026373,2]
[355136188,1740934245229,-500.0,0.00026373,2]
[355136190,1740934245241,-500.0,0.00026373,2]
[355136192,1740934245251,-500.0,0.00026373,2]
[355136194,1740934245260,-500.0,0.00026373,2]
[355136196,1740934245270,-500.0,0.00026373,2]
[355136198,1740934245280,-500.0,0.00026373,2]
[355136200,1740934245290,-500.0,0.00026373,2]
[355136203,1740934245299,-1069.61,0.00026373,2]
[355136205,1740934245309,-500.0,0.00026373,2]
[355136207,1740934245319,-1034.02,0.00026373,2]
[355136208,1740934245328,-500.0,0.00026373,2]
[355136210,1740934245338,-500.0,0.00026373,2]
[355136212,1740934245347,-506.96709791,0.00026373,2]
[355136215,1740934245357,-500.0,0.00026373,2]
[355136216,1740934245366,-404.74328698,0.00026373,2]
[355136219,1740934245375,-1007.72,0.00026373,2]
[355136221,1740934245385,-500.0,0.00026373,2]
[355136222,1740934245394,-500.0,0.00026373,2]
[355136225,1740934245406,-500.0,0.00026373,2]
[355136227,1740934245415,-500.0,0.00026373,2]
[355136230,1740934245439,-596.18,0.00026373,2]
[355136233,1740934245458,-500.0,0.00026373,2]
[355136237,1740934245484,-887.68,0.00026373,2]
[355136240,1740934245508,-500.0,0.00026373,2]
[355136243,1740934245526,-579.97788064,0.00026373,2]
[355136246,1740934245547,-500.0,0.00026373,2]
[355136250,1740934245570,-500.0,0.00026373,2]
[355136251,1740934245591,-500.0,0.00026373,2]
[355136252,1740934245614,-500.0,0.00026373,2]
[355136253,1740934245633,-500.0,0.00026373,2]
[355136254,1740934245655,-500.0,0.00026373,2]
[355136255,1740934245672,-500.0,0.00026373,2]
[355136256,1740934245693,-512.73,0.00026373,2]
[355136257,1740934245713,-500.0,0.00026373,2]
[355136258,1740934245734,-500.0,0.00026373,2]
[355136260,1740934245753,-500.0,0.00026373,2]
[355136262,1740934245770,-796.29,0.00026373,2]
[355136265,1740934245788,-500.0,0.00026373,2]
[355136267,1740934245805,-500.0,0.00026373,2]
[355136270,1740934245823,-512.31,0.00026373,2]
[355136273,1740934245841,-500.0,0.00026373,2]
[355136275,1740934245858,-272.58804975,0.00026373,2]
[355136279,1740934245882,-504.61,0.00026373,2]
[355136282,1740934245900,-500.0,0.00026373,2]
[355136284,1740934245920,-500.0,0.00026373,2]
[355136287,1740934245939,-500.0,0.00026373,2]
[355136290,1740934245957,-613.62,0.00026373,2]
[355136293,1740934245976,-500.0,0.00026373,2]
[355136296,1740934245999,-500.0,0.00026373,2]
[355136299,1740934246018,-500.0,0.00026373,2]
[355136301,1740934246038,-500.0,0.00026373,2]
[355136304,1740934246058,-500.0,0.00026373,2]
[355136306,1740934246078,-500.0,0.00026373,2]
[355136310,1740934246096,-767.83,0.00026373,2]
[355136315,1740934246114,-205.36691089,0.00026373,2]
[355136319,1740934246132,-500.0,0.00026373,2]
[355136321,1740934246152,-776.69,0.00026373,2]
[355136324,1740934246171,-543.95814884,0.00026373,2]
[355136327,1740934246190,-500.0,0.00026373,2]
[355136330,1740934246209,-500.0,0.00026373,2]
[355136334,1740934246232,-523.84,0.00026373,2]
[355136338,1740934246251,-500.0,0.00026373,2]
[355136342,1740934246271,-940.2,0.00026373,2]
[355136345,1740934246292,-500.0,0.00026373,2]
[355136348,1740934246310,-500.0,0.00026373,2]
[355136353,1740934246331,-790.97,0.00026373,2]
[355136357,1740934246351,-500.0,0.00026373,2]
[355136360,1740934246369,-553.5,0.00026373,2]
[355136362,1740934246389,-500.0,0.00026373,2]
[355136365,1740934246408,-167.94681223,0.00026373,2]
[355136370,1740934246427,-500.0,0.00026373,2]
[355136374,1740934246449,-500.0,0.00026373,2]
[355136378,1740934246469,-1094.02,0.00026373,2]
[355136383,1740934246492,-600.93,0.00026373,2]
[355136386,1740934246511,-500.0,0.00026373,2]
[355136390,1740934246532,-1052.79,0.00026373,2]
[355136393,1740934246553,-500.0,0.00026373,2]
[355136398,1740934246571,-504.5180102,0.00026373,2]
[355136402,1740934246589,-500.0,0.00026373,2]
[355136407,1740934246607,-500.0,0.00026373,2]
[355136411,1740934246626,-500.0,0.00026373,2]
[355136416,1740934246646,-500.0,0.00026373,7]
[355136421,1740934246667,-503.47157898,0.00026373,2]
[355136424,1740934246689,-500.0,0.00026373,2]
[355136429,1740934246709,-500.0,0.00026373,2]
[355136434,1740934246737,-509.70716883,0.00026373,2]
[355136439,1740934246758,-500.0,0.00026373,2]
[355136444,1740934246779,-500.0,0.00026373,2]
[355136449,1740934246797,-500.0,0.00026373,2]
[355136454,1740934246816,-505.27147661,0.00026373,2]
[355136458,1740934246834,-500.0,0.00026373,2]
[355136463,1740934246855,-500.0,0.00026373,2]
[355136468,1740934246875,-500.0,0.00026373,2]
[355136473,1740934246893,-500.0,0.00026373,2]
[355136477,1740934246911,-588.04,0.00026373,2]
[355136482,1740934246930,-506.90318492,0.00026373,2]
[355136487,1740934246950,-503.09953856,0.00026373,2]
[355136490,1740934246963,-641.32,0.00026373,2]
[355136493,1740934246972,-500.0,0.00026373,2]
[355136496,1740934246985,-500.0,0.00026373,2]
[355136499,1740934246998,-500.0,0.00026373,2]
[355136555,1740934247277,-500.0,0.00026373,2]
[355136562,1740934247315,-500.0,0.00026373,2]
[355136566,1740934247326,-500.0,0.00026373,2]
[355136569,1740934247336,-500.0,0.00026373,2]
[355136572,1740934247345,-500.0,0.00026373,120]
[355136575,1740934247354,-884.29,0.00026373,2]
[355136579,1740934247364,-500.0,0.00026373,2]
[355136582,1740934247374,-500.0,0.00026373,2]
[355136588,1740934247384,-1045.02,0.00026373,2]
[355136590,1740934247395,-300.0,0.00026373,2]
[355136594,1740934247405,-500.0,0.00026373,2]
[355136596,1740934247415,-500.0,0.00026373,2]
[355136600,1740934247425,-500.0,0.00026373,2]
[355136601,1740934247435,-918.11,0.00026373,2]
[355136603,1740934247448,-500.0,0.00026373,2]
[355136606,1740934247460,-500.0,0.00026373,2]
[355136608,1740934247471,-500.0,0.00026373,2]
[355136610,1740934247480,-500.0,0.00026373,2]
[355136611,1740934247495,-500.0,0.00026373,2]
[355136613,1740934247506,-500.0,0.00026373,2]
[355136615,1740934247516,-500.0,0.00026373,2]
[355136617,1740934247525,-500.0,0.00026373,2]
[355136619,1740934247534,-505.69313427,0.00026373,2]
[355136621,1740934247544,-500.0,0.00026373,2]
[355136623,1740934247554,-500.0,0.00026373,2]
[355136625,1740934247564,-500.0,0.00026373,2]
[355136627,1740934247574,-500.0,0.00026373,2]
[355136629,1740934247584,-500.0,0.00026373,2]
[355136631,1740934247594,-1046.65,0.00026373,2]
[355136633,1740934247604,-500.0,0.00026373,2]
[355136635,1740934247614,-500.0,0.00026373,2]
[355136636,1740934247624,-500.0,0.00026373,2]
[355136637,1740934247634,-500.0,0.00026373,2]
[355136639,1740934247644,-3000.0,0.00026373,2]
[355136641,1740934247654,-500.0,0.00026373,2]
[355136643,1740934247665,-500.0,0.00026373,2]
[355136645,1740934247675,-500.0,0.00026373,2]
[355136647,1740934247685,-500.0,0.00026373,2]
[355136649,1740934247697,-500.0,0.00026373,2]
[355136651,1740934247707,-500.0,0.00026373,2]
[355136653,1740934247717,-500.0,0.00026373,2]
[355136655,1740934247727,-500.0,0.00026373,2]
[355136657,1740934247742,-500.0,0.00026373,2]
[355136659,1740934247751,-500.0,0.00026373,2]
[355136661,1740934247761,-500.0,0.00026373,2]
[355136663,1740934247771,-500.0,0.00026373,2]
[355136665,1740934247783,-500.0,0.00026373,2]
[355136666,1740934247793,-500.0,0.00026373,2]
[355136668,1740934247803,-500.0,0.00026373,2]
[355136670,1740934247812,-500.0,0.00026373,2]
[355136672,1740934247823,-500.0,0.00026373,2]
[355136674,1740934247833,-500.0,0.00026373,2]
[355136676,1740934247843,-500.0,0.00026373,2]
[355136678,1740934247852,-500.0,0.00026373,2]
[355136680,1740934247862,-500.0,0.00026373,2]
[355136682,1740934247872,-500.0,0.00026373,2]
[355136684,1740934247882,-500.0,0.00026373,2]
[355136686,1740934247892,-500.0,0.00026373,2]
[355136688,1740934247902,-500.0,0.00026373,2]
[355136690,1740934247912,-500.0,0.00026373,2]
[355136692,1740934247922,-500.0,0.00026373,2]
[355136694,1740934247932,-500.0,0.00026373,2]
[355136696,1740934247941,-500.0,0.00026373,2]
[355136698,1740934247951,-500.0,0.00026373,2]
[355136700,1740934247960,-500.0,0.00026373,2]
[355136701,1740934247970,-500.0,0.00026373,2]
[355136703,1740934247980,-500.0,0.00026373,2]
[355136705,1740934247994,-500.0,0.00026373,2]
[355136707,1740934248004,-500.0,0.00026373,2]
[355136711,1740934248026,-500.0,0.00026373,2]
[355136713,1740934248039,-500.0,0.00026373,2]
[355136715,1740934248051,-500.0,0.00026373,2]
[355136717,1740934248062,-500.0,0.00026373,2]
[355136719,1740934248074,-500.0,0.00026373,2]
[355136721,1740934248086,-500.0,0.00026373,2]
[355136723,1740934248096,-500.0,0.00026373,2]
[355136725,1740934248107,-500.0,0.00026373,2]
[355136727,1740934248118,-500.0,0.00026373,2]
[355136729,1740934248131,-500.0,0.00026373,2]
[355136731,1740934248144,-500.0,0.00026373,2]
[355136733,1740934248156,-500.0,0.00026373,2]
[355136735,1740934248167,-500.0,0.00026373,2]
[355136737,1740934248178,-529.8,0.00026373,2]
[355136739,1740934248190,-500.0,0.00026373,2]
[355136741,1740934248201,-500.0,0.00026373,2]
[355136743,1740934248213,-500.0,0.00026373,2]
[355136745,1740934248226,-500.0,0.00026373,2]
[355136747,1740934248239,-500.0,0.00026373,2]
[355136749,1740934248251,-501.42507899,0.00026373,2]
[355136751,1740934248263,-500.0,0.00026373,2]
[355136753,1740934248275,-500.0,0.00026373,2]
[355136755,1740934248286,-500.0,0.00026373,2]
[355136757,1740934248298,-612.24404387,0.00026383,4]
[355136759,1740934248309,-470.01,0.00026468,2]
[355136761,1740934248321,-7965.96944,0.00026488,2]
[355136763,1740934248332,-924.7036,0.000265,2]
[355136765,1740934248342,-3521.23862221,0.00026546,2]
[355136767,1740934248352,-434.1607,0.00026547,2]
[355136769,1740934248362,-168.01223014,0.00026573,2]
[355136771,1740934248372,-612.24404387,0.0002659,4]
[355136773,1740934248380,-470.01,0.00026599,2]
[355136775,1740934248390,-187.69289912,0.00026637,2]
[355136777,1740934248401,-1876.76,0.00026645,2]
[355136779,1740934248412,-1549.45,0.00026645,2]
[355136781,1740934248423,-500.0,0.00026645,2]
[355136783,1740934248435,-1640.73,0.00026645,2]
[355136785,1740934248446,-735.42,0.00026645,2]
[355136787,1740934248457,-1038.58,0.00026645,2]
[355136789,1740934248468,-1324.37,0.00026645,2]
[355136790,1740934248480,-1030.42,0.00026645,2]
[355136791,1740934248495,-1008.61,0.00026645,2]
[355136792,1740934248516,-1220.49,0.00026645,2]
[355136793,1740934248529,-974.65,0.00026645,2]
[355136794,1740934248540,-796.26,0.00026645,2]
[355136796,1740934248552,-1883.74,0.00026645,2]
[355136798,1740934248562,-1450.26,0.00026645,2]
[355136800,1740934248574,-500.0,0.00026645,2]
[355136802,1740934248589,-1000.0,0.00026645,2]
[355136804,1740934248600,-1403.46,0.00026645,2]
[355136806,1740934248610,-500.0,0.00026645,2]
[355136808,1740934248620,-500.0,0.00026645,2]
[355136810,1740934248632,-746.03,0.00026645,2]
[355136812,1740934248643,-816.44,0.00026645,2]
[355136814,1740934248654,-1361.09,0.00026645,2]
[355136817,1740934248665,-500.0,0.00026645,2]
[355136819,1740934248676,-500.0,0.00026645,2]
[355136821,1740934248689,-500.0,0.00026645,2]
[355136823,1740934248699,-971.76,0.00026645,2]
[355136825,1740934248710,-1747.03,0.00026645,2]
[355136827,1740934248720,-1287.02,0.00026645,2]
[355136829,1740934248735,-863.73,0.00026645,2]
[355136831,1740934248747,-500.0,0.00026645,2]
[355136833,1740934248759,-735.96,0.00026645,2]
[355136835,1740934248770,-905.51,0.00026645,2]
[355136837,1740934248783,-982.53,0.00026645,2]
[355136839,1740934248794,-1390.21,0.00026645,2]
[355136841,1740934248805,-595.81,0.00026645,2]
[355136843,1740934248816,-583.19,0.00026645,2]
[355136845,1740934248827,-500.0,0.00026645,2]
[355136847,1740934248839,-598.39,0.00026645,2]
[355136849,1740934248850,-500.0,0.00026645,2]
[355136852,1740934248862,-500.0,0.00026645,2]
[355136854,1740934248874,-1233.81,0.00026645,2]
[355136856,1740934248885,-2920.05,0.00026645,2]
[355136858,1740934248897,-890.18,0.00026645,2]
[355136860,1740934248908,-500.0,0.00026645,2]
[355136862,1740934248920,-4216.33,0.00026645,2]
[355136864,1740934248931,-825.61,0.00026645,2]
[355136866,1740934248943,-1005.08,0.00026645,2]
[355136868,1740934248954,-500.0,0.00026645,2]
[355136871,1740934248967,-721.2,0.00026645,2]
[355136873,1740934248978,-500.0,0.00026645,2]
[355136875,1740934248991,-500.0,0.00026645,2]
[355136877,1740934249003,-3081.8,0.00026645,2]
[355136879,1740934249014,-651.66,0.00026645,2]
[355136881,1740934249025,-310.21769562,0.00026646,2]
[355136883,1740934249037,-506.97993215,0.00026646,2]
[355136885,1740934249048,-601.32,0.00026646,2]
[355136887,1740934249060,-500.0,0.00026646,2]
[355136890,1740934249071,-582.32,0.00026646,2]
[355136892,1740934249082,-984.08,0.00026646,2]
[355136894,1740934249094,-500.0,0.00026646,2]
[355136896,1740934249104,-500.0,0.00026646,2]
[355136898,1740934249115,-537.39423838,0.00026646,2]
[355136900,1740934249125,-975.84,0.00026646,2]
[355136902,1740934249135,-500.0,0.00026646,2]
[355136904,1740934249146,-596.68,0.00026646,2]
[355136906,1740934249157,-500.0,0.00026646,2]
[355136908,1740934249170,-500.0,0.00026646,2]
[355136910,1740934249180,-500.0,0.00026646,2]
[355136913,1740934249195,-500.0,0.00026646,2]
[355136915,1740934249206,-649.95,0.00026646,2]
[355136917,1740934249216,-500.0,0.00026646,2]
[355136919,1740934249227,-913.81,0.00026646,2]
[355136921,1740934249240,-471.8577796,0.00026646,2]
[355136923,1740934249251,-500.0,0.00026646,2]
[355136925,1740934249261,-826.37,0.00026646,2]
[355136927,1740934249272,-500.0,0.00026646,2]
[355136930,1740934249282,-523.21,0.00026646,2]
[355136932,1740934249293,-500.0,0.00026646,2]
[355136934,1740934249304,-500.0,0.00026646,2]
[355136936,1740934249314,-500.0,0.00026646,2]
[355136938,1740934249324,-500.0,0.00026646,2]
[355136940,1740934249335,-500.0,0.00026646,2]
[355136942,1740934249344,-500.0,0.00026646,2]
[355136944,1740934249354,-652.27,0.00026646,2]
[355136946,1740934249365,-603.66,0.00026646,2]
[355136948,1740934249375,-500.0,0.00026646,2]
[355136950,1740934249386,-500.0,0.00026646,2]
[355136952,1740934249397,-959.87,0.00026646,2]
[355136954,1740934249408,-500.0,0.00026646,2]
[355136956,1740934249418,-273.088224,0.00026646,2]
[355136958,1740934249429,-500.0,0.00026646,2]
[355136960,1740934249440,-538.07235596,0.00026646,2]
[355136962,1740934249450,-500.0,0.00026646,2]
[355136964,1740934249462,-500.0,0.00026646,2]
[355136966,1740934249475,-500.0,0.00026646,2]
[355136968,1740934249491,-500.0,0.00026646,2]
[355136970,1740934249504,-500.0,0.00026646,2]
[355136972,1740934249516,-553.49,0.00026646,2]
[355136974,1740934249529,-500.0,0.00026646,2]
[355136976,1740934249541,-500.0,0.00026646,2]
[355136979,1740934249554,-500.0,0.00026646,2]
[355136981,1740934249566,-500.0,0.00026646,2]
[355136983,1740934249577,-490.051962,0.00026646,2]
[355136985,1740934249590,-586.59,0.00026646,2]
[355136987,1740934249602,-500.0,0.00026646,2]
[355136989,1740934249613,-500.0,0.00026646,2]
[355136991,1740934249624,-612.36,0.00026646,2]
[355136993,1740934249634,-500.0,0.00026646,2]
[355136995,1740934249645,-500.0,0.00026646,2]
[355136997,1740934249656,-500.0,0.00026646,2]
[355136999,1740934249667,-500.0,0.00026646,2]
[355137001,1740934249677,-500.0,0.00026646,2]
[355137004,1740934249690,-672.77,0.00026646,2]
[355137006,1740934249705,-500.0,0.00026646,2]
[355137008,1740934249720,-645.05,0.00026646,2]
[355137010,1740934249730,-500.0,0.00026646,2]
[355137012,1740934249744,-500.0,0.00026646,2]
[355137014,1740934249756,-500.0,0.00026646,2]
[355137016,1740934249766,-500.0,0.00026646,2]
[355137018,1740934249777,-901.95,0.00026646,2]
[355137020,1740934249788,-1081.17,0.00026646,2]
[355137022,1740934249798,-500.0,0.00026646,2]
[355137025,1740934249809,-500.0,0.00026646,2]
[355137027,1740934249819,-500.0,0.00026646,2]
[355137029,1740934249830,-500.0,0.00026646,2]
[355137031,1740934249841,-839.39,0.00026646,2]
[355137033,1740934249852,-500.0,0.00026646,2]
[355137035,1740934249862,-500.0,0.00026646,2]
[355137037,1740934249872,-500.0,0.00026646,2]
[355137039,1740934249883,-500.0,0.00026646,2]
[355137041,1740934249893,-500.0,0.00026646,2]
[355137043,1740934249909,-500.0,0.00026646,2]
[355137045,1740934249919,-269.87401069,0.00026646,2]
[355137047,1740934249930,-1654.66,0.00026646,2]
[355137049,1740934249941,-500.0,0.00026646,2]
[355137051,1740934249951,-500.0,0.00026646,2]
[355137053,1740934249961,-500.0,0.00026646,2]
[355137055,1740934249973,-500.0,0.00026646,2]
[355137057,1740934249984,-500.0,0.00026646,2]
[355137059,1740934249998,-500.0,0.00026646,2]
[355137061,1740934250009,-500.0,0.00026646,2]
[355137063,1740934250021,-712.05,0.00026646,2]
[355137065,1740934250031,-500.0,0.00026646,2]
[355137067,1740934250043,-959.72,0.00026646,2]
[355137069,1740934250055,-500.0,0.00026646,2]
[355137071,1740934250066,-500.0,0.00026646,2]
[355137073,1740934250077,-500.0,0.00026646,2]
[355137075,1740934250087,-500.0,0.00026646,2]
[355137077,1740934250097,-500.0,0.00026646,2]
[355137079,1740934250108,-500.0,0.00026646,2]
[355137081,1740934250118,-306.73807068,0.00026646,2]
[355137083,1740934250128,-500.0,0.00026646,2]
[355137086,1740934250142,-500.0,0.00026646,2]
[355137087,1740934250152,-668.44,0.00026646,2]
[355137089,1740934250162,-500.0,0.00026646,2]
[355137092,1740934250173,-502.08764967,0.00026646,2]
[355137094,1740934250185,-1209.06,0.00026646,2]
[355137095,1740934250195,-500.0,0.00026646,2]